fUSD/lending_fUSD_20241106
["ID","MTS","AMOUNT","RATE_DAILY","PERIOD"]
[341496022,1730922681767,-1000.0,0.0003178,2]
[341496023,1730922681776,-1000.0,0.0003178,2]
[341496024,1730922681786,-1000.0,0.0003178,2]
[341496025,1730922681795,-1000.0,0.0003178,2]
[341496026,1730922681804,-1000.0,0.0003178,2]
[341496027,1730922681813,-1000.0,0.0003178,2]
[341496028,1730922681822,-1000.0,0.0003178,2]
[341496029,1730922681831,-1000.0,0.0003178,2]
[341496030,1730922681840,-1000.0,0.0003178,2]
[341496031,1730922681850,-1000.0,0.0003178,2]
[341496032,1730922681859,-1000.0,0.0003178,2]
[341496033,1730922681868,-1000.0,0.0003178,2]
[341496034,1730922681877,-1000.0,0.0003178,2]
[341496035,1730922681886,-1000.0,0.0003178,2]
[341496036,1730922681899,-1000.0,0.0003178,2]
[341496037,1730922681913,-1000.0,0.0003178,2]
[341496038,1730922681925,-1000.0,0.0003178,2]
[341496039,1730922681937,-1000.0,0.0003178,2]
[341496040,1730922681948,-1000.0,0.0003178,2]
[341496041,1730922681960,-1000.0,0.0003178,2]
[341496042,1730922681972,-532.25802406,0.0003178,2]
[341496043,1730922681986,-151.0,0.0003178,7]
[341496044,1730922681998,-500.0,0.0003178,2]
[341496045,1730922682011,-747.29,0.0003178,2]
[341496046,1730922682024,-500.0,0.0003178,2]
[341496047,1730922682038,-500.0,0.0003178,2]
[341496048,1730922682051,-524.69,0.0003178,2]
[341496049,1730922682064,-500.0,0.0003178,2]
[341496050,1730922682077,-500.0,0.0003178,2]
[341496051,1730922682089,-1051.01,0.0003178,2]
[341496052,1730922682100,-500.0,0.0003178,2]
[341496053,1730922682114,-851.78,0.0003178,2]
[341496054,1730922682127,-365.88204569,0.0003178,2]
[341496055,1730922682140,-391.00784465,0.0003178,2]
[341496056,1730922682154,-572.0,0.0003178,2]
[341496057,1730922682167,-500.0,0.0003178,2]
[341496058,1730922682179,-500.0,0.0003178,2]
[341496059,1730922682191,-659.87,0.0003178,2]
[341496060,1730922682201,-1047.2,0.0003178,2]
[341496061,1730922682212,-500.0,0.0003178,2]
[341496062,1730922682224,-500.0,0.0003178,2]
[341496063,1730922682237,-933.13,0.0003178,2]
[341496064,1730922682251,-502.97,0.0003178,2]
[341496065,1730922682263,-628.18401918,0.0003178,2]
[341496066,1730922682275,-500.0,0.0003178,2]
[341496067,1730922682288,-500.0,0.0003178,2]
[341496068,1730922682301,-663.55,0.0003178,2]
[341496069,1730922682315,-718.46,0.0003178,2]
[341496070,1730922682329,-500.0,0.0003178,2]
[341496071,1730922682340,-549.51,0.0003178,2]
[341496072,1730922682351,-500.0,0.0003178,2]
[341496073,1730922682362,-620.75,0.0003178,2]
[341496074,1730922682374,-225.93691387,0.0003178,2]
[341496075,1730922682386,-721.78,0.0003178,2]
[341496076,1730922682402,-579.23202347,0.0003178,2]
[341496077,1730922682415,-578.58,0.0003178,2]
[341496078,1730922682427,-1169.27,0.0003178,2]
[341496079,1730922682437,-500.0,0.0003178,2]
[341496080,1730922682450,-626.9,0.0003178,2]
[341496081,1730922682463,-349.76372771,0.0003178,2]
[341496082,1730922682478,-528.97,0.0003178,2]
[341496083,1730922682492,-500.0,0.0003178,2]
[341496084,1730922682504,-588.31,0.0003178,2]
[341496085,1730922682515,-992.82,0.0003178,2]
[341496086,1730922682526,-453.84023058,0.0003178,2]
[341496087,1730922682537,-500.0,0.0003178,2]
[341496088,1730922682553,-949.12,0.0003178,2]
[341496089,1730922682565,-628.45,0.0003178,2]
[341496090,1730922682577,-892.79,0.0003178,2]
[341496091,1730922682588,-574.4,0.0003178,2]
[341496092,1730922682601,-641.4,0.0003178,2]
[341496093,1730922682613,-1259.56,0.0003178,2]
[341496094,1730922682626,-500.0,0.0003178,2]
[341496095,1730922682639,-941.09,0.0003178,2]
[341496096,1730922682652,-500.0,0.0003178,2]
[341496097,1730922682665,-859.1,0.0003178,2]
[341496098,1730922682678,-1000.0,0.0003178,30]
[341496099,1730922682692,-1523.21,0.0003178,2]
[341496100,1730922682704,-616.69,0.0003178,2]
[341496101,1730922682717,-536.1,0.0003178,2]
[341496102,1730922682729,-530.09,0.0003178,2]
[341496103,1730922682743,-1724.32,0.0003178,2]
[341496104,1730922682755,-791.56,0.0003178,2]
[341496105,1730922682768,-1306.48,0.0003178,2]
[341496106,1730922682780,-500.0,0.0003178,2]
[341496107,1730922682793,-989.59,0.0003178,2]
[341496108,1730922682805,-508.25,0.0003178,2]
[341496109,1730922682817,-500.0,0.0003178,2]
[341496110,1730922682829,-2159.33,0.0003178,2]
[341496111,1730922682840,-1683.35,0.0003178,2]
[341496112,1730922682853,-536.59,0.0003178,2]
[341496113,1730922682865,-1052.72,0.0003178,2]
[341496114,1730922682878,-500.0,0.0003178,2]
[341496115,1730922682891,-1358.49,0.0003178,2]
[341496116,1730922682903,-500.0,0.0003178,2]
[341496117,1730922682915,-500.0,0.0003178,2]
[341496118,1730922682927,-1719.08,0.0003178,2]
[341496119,1730922682940,-389.90245785,0.0003178,2]
[341496120,1730922682952,-1081.12,0.0003178,2]
[341496121,1730922682963,-554.88,0.0003178,2]
[341496122,1730922682976,-608.63,0.0003178,2]
[341496123,1730922682988,-655.47,0.0003178,2]
[341496124,1730922683000,-576.36,0.0003178,2]
[341496125,1730922683011,-641.95,0.0003178,2]
[341496126,1730922683023,-2127.75,0.0003178,2]
[341496127,1730922683035,-565.93,0.0003178,2]
[341496128,1730922683046,-1670.33,0.0003178,2]
[341496129,1730922683057,-665.68,0.0003178,2]
[341496130,1730922683069,-978.4,0.0003178,2]
[341496131,1730922683080,-500.0,0.0003178,2]
[341496132,1730922683092,-1219.79,0.0003178,2]
[341496133,1730922683104,-1209.34,0.0003178,2]
[341496134,1730922683115,-1277.02,0.0003178,2]
[341496135,1730922683127,-538.64,0.0003178,2]
[341496136,1730922683139,-500.0,0.0003178,2]
[341496137,1730922683150,-1000.12,0.0003178,2]
[341496138,1730922683162,-631.0210905,0.0003178,2]
[341496139,1730922683173,-802.32,0.0003178,2]
[341496140,1730922683185,-1976.19,0.0003178,2]
[341496141,1730922683196,-569.46,0.0003178,2]
[341496142,1730922683208,-221.85943953,0.0003178,2]
[341496143,1730922683220,-894.15,0.0003178,2]
[341496144,1730922683231,-800.0,0.000318,11]
[341496145,1730922683242,-8576.0,0.00031823,2]
[341496146,1730922683254,-1197.41257964,0.0003184,4]
[341496147,1730922683266,-1109.44454855,0.00031847,5]
[341496148,1730922683277,-505.93082385,0.00031847,5]
[341496149,1730922683288,-22694.19588945,0.0003187,2]
[341496150,1730922683300,-1899.190085,0.00031877,2]
[341496151,1730922683311,-168.723121,0.00031877,2]
[341496152,1730922683322,-159.940041,0.00031877,2]
[341496153,1730922683333,-168.10005,0.00031877,2]
[341496154,1730922683349,-150.341724,0.00031877,2]
[341496155,1730922683360,-695.958713,0.00031877,2]
[341496156,1730922683371,-155.637596,0.00031877,2]
[341496157,1730922683384,-5000.0,0.0003188,16]
[341496158,1730922683398,-327.56,0.00031898,120]
[341496159,1730922683410,-500.0,0.000319,3]
[341496160,1730922683422,-968.27213108,0.000319,2]
[341496161,1730922683434,-252.17299877,0.000319,2]
[341496162,1730922683445,-6210.89279586,0.000319,15]
[341496163,1730922684084,-5085.72711081,0.000319,15]
[341496164,1730922684094,-800.0,0.000319,11]
[341496165,1730922684105,-171.88568189,0.000319,2]
[341496166,1730922684117,-614.1219092,0.000319,2]
[341496167,1730922684128,-151.42395311,0.000319,6]
[341496168,1730922684139,-298.492427,0.00031978,7]
[341496169,1730922684150,-59085.21684898,0.00031998,2]
[341496170,1730922684161,-926.84,0.00031998,2]
[341496171,1730922684173,-172.182207,0.00031998,7]
[341496172,1730922684184,-151.0,0.00031998,7]
[341496173,1730922684194,-594.868439,0.00031998,7]
[341496174,1730922684206,-594.868441,0.00031998,7]
[341496175,1730922684216,-1724981.775211,0.00032,5]
[341496176,1730922684243,-120.5189587,0.00032,5]
[341496177,1730922684256,-4596.84878081,0.00032,5]
[341496178,1730922684321,-779215.85835694,0.00032,5]
[341496179,1730922685731,-151.0,0.00028219,7]
[341496180,1730922685741,-151.0,0.00028493,7]
[341496181,1730922685751,-151.0,0.00028493,7]
[341496182,1730922685760,-151.0,0.00028767,7]
[341496183,1730922685770,-151.0,0.00029041,7]
[341496184,1730922685780,-151.0,0.00029589,7]
[341496185,1730922685789,-235.6,0.00032,5]
[341496186,1730922685801,-1073.61091901,0.00032,5]
[341496187,1730922685812,-2451.38359571,0.00032,5]
[341496188,1730922685824,-453.85298519,0.00032,5]
[341496189,1730922685835,-2192.36880359,0.00032,5]
[341496190,1730922685846,-12658.58526291,0.00032,5]
[341496191,1730922685858,-60233.60000001,0.00032,5]
[341496192,1730922685916,-718507.01635449,0.00032,5]
[341496193,1730922685927,-1661.21172901,0.00032,5]
[341496194,1730922685939,-5000.0,0.00032,5]
[341496195,1730922685951,-15145.299628,0.00032,5]
[341496196,1730922685962,-4506.06258621,0.00032,5]
[341496197,1730922685973,-8699.89616399,0.00032,5]
[341496198,1730922685986,-1483.49375432,0.00032,5]
[341496199,1730922686000,-114971.55879916,0.00032,5]
[341496200,1730922686011,-324.67793498,0.00032,5]
[341496201,1730922686064,-2189.5392959,0.00032,5]
[341496202,1730922686075,-295.3878403,0.00032,5]
[341496203,1730922686087,-376.95,0.00032,5]
[341496204,1730922686152,-6646.89595268,0.00032,5]
[341496205,1730922686163,-1408.82174182,0.00032,5]
[341496206,1730922686186,-2561.36183662,0.00032,5]
[341496207,1730922686200,-7551.12817387,0.00032,5]
[341496208,1730922686211,-1221.72,0.00032,5]
[341496209,1730922686222,-456.80005735,0.00032,5]
[341496210,1730922686387,-151.0,0.00029899,7]
[341496211,1730922686397,-13159.23553323,0.00032,5]
[341496212,1730922686408,-2192.54833991,0.00032,5]
[341496213,1730922686419,-391.93289416,0.00032,5]
[341496214,1730922686431,-1748.9835148,0.00032,5]
[341496215,1730922686444,-432.87434618,0.00032,5]
[341496216,1730922732239,150.0,0.00018123,2]
[341496218,1730923029523,158.09,0.00015342,2]
[341496220,1730923445392,250.0,0.00021,2]
[341496221,1730923549128,-300.0,0.00023,2]
[341496222,1730923549148,-1127.125107,0.00024262,2]
[341496223,1730923549171,-18484.9267,0.00024507,2]
[341496224,1730923549192,-306.8584,0.00024607,2]
[341496225,1730923549213,-323.9214975,0.00024832,2]
[341496226,1730923549234,-500.0,0.00024932,2]
[341496227,1730923549254,-500.0,0.00024932,2]
[341496228,1730923549275,-500.0,0.00024932,2]
[341496229,1730923549296,-500.0,0.00024932,2]
[341496230,1730923549316,-350.0,0.00025,2]
[341496231,1730923549337,-407.09365794,0.000253,10]
[341496232,1730923549357,-280.9,0.00026,10]
[341496233,1730923549379,-1294.04,0.00026679,2]
[341496234,1730923549400,-300.0,0.00027,120]
[341496235,1730923549423,-400.0,0.00027,2]
[341496236,1730923549445,-1000.0,0.0002767,30]
[341496237,1730923549466,-515.6,0.00027874,2]
[341496238,1730923549486,-350.0,0.000279,2]
[341496239,1730923549507,-3060.83428465,0.00027994,2]
[341496240,1730923568356,161.93,0.00015342,2]
[341496241,1730923653192,-179.2038326,0.00026457,2]
[341496250,1730923746101,-1050.1261674,0.00026457,2]
[341496251,1730923746122,-15245.22656639,0.00027894,2]
[341496252,1730923746142,-10144.45534621,0.00027994,2]
[341496253,1730923752179,-10684.71036914,0.00027994,2]
[341496254,1730923752199,-2688.34,0.00028014,2]
[341496255,1730923752220,-200.0,0.00028075,7]
[341496256,1730923752240,-929.89,0.00028217,2]
[341496257,1730923752260,-200.0,0.00028233,2]
[341496258,1730923752279,-250.0,0.00028246,2]
[341496259,1730923752300,-6219.18,0.00028256,2]
[341496260,1730923752322,-7033.9,0.00028309,2]
[341496261,1730923752343,-370.97,0.0002831,2]
[341496262,1730923752363,-163.78,0.00028333,120]
[341496263,1730923752383,-200.0,0.00028335,2]
[341496264,1730923752403,-150.0,0.00028344,2]
[341496265,1730923752424,-250.0,0.00028367,2]
[341496266,1730923752444,-416.28,0.00028371,30]
[341496267,1730923752465,-250.0,0.00028376,2]
[341496268,1730923752484,-300.0,0.000284,120]
[341496269,1730923752506,-929.89,0.00028491,3]
[341496270,1730923752527,-171.41,0.0002857,2]
[341496271,1730923752548,-636.22,0.00028632,120]
[341496272,1730923752571,-1000.0,0.00028668,2]
[341496273,1730923802634,200.0,0.00023,2]
[341496282,1730923831839,-30519.9453344,0.00028701,2]
[341496283,1730923831849,-1229.33,0.00028721,2]
[341496284,1730923831861,-1000.0,0.00028755,2]
[341496285,1730923831871,-200.0,0.000288,2]
[341496286,1730923831881,-9618.372,0.000288,2]
[341496287,1730923831891,-181.57,0.00028947,2]
[341496288,1730923831900,-1000.0,0.00028999,2]
[341496289,1730923831909,-250.0,0.00029,120]
[341496290,1730923831919,-450.0,0.00029,2]
[341496291,1730923831929,-14575.17,0.00029,2]
[341496292,1730923831938,-1000.0,0.0002904,30]
[341496293,1730923831949,-200.32,0.00029084,2]
[341496294,1730923831958,-176.79,0.00029113,2]
[341496295,1730923831968,-200.0,0.00029244,2]
[341496296,1730923831978,-166.76,0.0002941,2]
[341496297,1730923831988,-300.2,0.0003,3]
[341496298,1730923831998,-300.0,0.0003,120]
[341496299,1730923832007,-221.78,0.0003,30]
[341496300,1730923832017,-174.65,0.00030137,2]
[341496301,1730923832027,-1000.0,0.0003041,30]
[341496302,1730923832036,-174.24113221,0.00030483,2]
[341496303,1730923832045,-12197.24311358,0.00030483,2]
[341496304,1730923832057,-3190.82600437,0.00030483,2]
[341496305,1730923832096,-220.43987782,0.00030483,2]
[341496306,1730923832106,-471.70576988,0.00030483,2]
[341496307,1730923832120,-133.46431207,0.00030483,2]
[341496308,1730923832130,-323.0,0.0003049,2]
[341496309,1730923832140,-358.51,0.0003049,10]
[341496310,1730923832149,-50.34957706,0.0003049,2]
[341496321,1730923833247,-150.110705,0.00030498,2]
[341496322,1730923833256,-150.110705,0.00030498,3]
[341496323,1730923833266,-150.110705,0.00030498,4]
[341496324,1730923833276,-500.0,0.00030499,2]
[341496325,1730923833285,-600.68402341,0.00030499,2]
[341496326,1730923833295,-500.0,0.00030499,2]
[341496327,1730923833304,-500.0,0.00030499,2]
[341496328,1730923833313,-500.0,0.00030499,2]
[341496329,1730923833322,-500.0,0.00030499,2]
[341496330,1730923833332,-500.0,0.00030499,2]
[341496331,1730923833341,-81737.13619361,0.000305,2]
[341496332,1730923833358,-88959.61644301,0.000305,2]
[341496333,1730923833369,-22692.6,0.000305,2]
[341496334,1730923833530,-749.9006,0.000305,2]
[341496335,1730923833542,-283.06794255,0.000305,2]
[341496336,1730923833586,-303.4456781,0.000305,2]
[341496337,1730923833597,-5444.28980249,0.000305,2]
[341496338,1730923833611,-7564.30000001,0.000305,2]
[341496339,1730923833623,-5142.9626965,0.000305,2]
[341496340,1730923833634,-295.6043219,0.000305,2]
[341496341,1730923833661,-10309.69152,0.000305,2]
[341496342,1730923833672,-1349.684,0.000305,2]
[341496350,1730923837892,-161.39,0.00029189,2]
[341496351,1730923837902,-161.39,0.00029213,2]
[341496352,1730923837911,-161.39,0.00029237,2]
[341496353,1730923837921,-161.39,0.00029262,2]
[341496354,1730923837931,-161.39,0.00029286,2]
[341496355,1730923837941,-161.39,0.0002931,2]
[341496356,1730923837951,-161.39,0.00029335,2]
[341496357,1730923837960,-161.39,0.00029359,2]
[341496358,1730923837969,-161.39,0.00029383,2]
[341496359,1730923837979,-161.39,0.00029408,2]
[341496360,1730923837989,-161.39,0.00029432,2]
[341496361,1730923837998,-907.71,0.000304,3]
[341496362,1730923838010,-1511.93,0.000304,3]
[341496363,1730923838021,-59.36,0.000304,3]
[341496364,1730923838030,-500.86301168,0.00030473,5]
[341496365,1730923838040,-196.47323622,0.00030483,2]
[341496366,1730923838049,-345379.29844014,0.000305,2]
[341496367,1730923838060,-610.82407843,0.000305,2]
[341496368,1730923838100,-9375.69826974,0.000305,2]
[341496369,1730923838115,-3634.43669942,0.000305,2]
[341496370,1730923838156,-2792.92121211,0.000305,2]
[341496371,1730923838168,-2850.26475934,0.000305,2]
[341496372,1730923838179,-3028.4,0.000305,2]
[341496373,1730923838190,-2683.745,0.000305,2]
[341496374,1730923838201,-382.19844744,0.000305,2]
[341496375,1730923838265,-161.39,0.00029456,2]
[341496376,1730923838275,-1504.93603135,0.000305,2]
[341496377,1730923838485,-3389.03329422,0.000305,2]
[341496382,1730923838579,-161.39,0.00029481,2]
[341496384,1730923838589,-241624.9746167,0.000305,2]
[341496386,1730923838602,-4393.04978046,0.000305,2]
[341496389,1730923838615,-20106.61394237,0.000305,2]
[341496505,1730923839829,-339.66656028,0.0003049,10]
[341496506,1730923839936,-55.66343972,0.0003049,10]
[341496507,1730923839946,-4221.63229795,0.000305,2]
[341496508,1730923839959,-2970.03722,0.000305,2]
[341496509,1730923839972,-2380.19788212,0.000305,2]
[341496510,1730923839984,-1259.96086,0.000305,2]
[341496511,1730923840011,-36977.39393446,0.000305,2]
[341496512,1730923840990,-2025.26791969,0.000305,2]
[341496520,1730923841122,-19.91153696,0.000305,2]
[341496523,1730923841216,-1009.64259488,0.000305,2]
[341496525,1730923841228,-690.34200092,0.000305,2]
[341496528,1730923841239,-40453.8764,0.000305,2]
[341496534,1730923842874,-513.18500005,0.000305,2]
[341496535,1730923842886,-60936.27985914,0.000305,2]
[341496536,1730923842897,-49761.7463142,0.000305,2]
[341496539,1730923842924,-2185.95480085,0.000305,2]
[341496540,1730923842936,-13424.92795305,0.000305,2]
[341496541,1730923843140,-2925.61937284,0.000305,2]
[341496542,1730923843152,-956.62825013,0.000305,2]
[341496543,1730923843163,-3785.95,0.000305,2]
[341496544,1730923843196,-3369052.75203287,0.000305,2]
[341496545,1730923843205,-322.46636262,0.00030583,2]
[341496546,1730923843214,-605.17008193,0.00030685,2]
[341496547,1730923843224,-669.5925,0.00030799,2]
[341496548,1730923843233,-263.1969,0.00030799,2]
[341496549,1730923843243,-819.4731,0.000308,2]
[341496550,1730923843252,-4620.2901,0.000308,2]
[341496551,1730923843261,-7327.7435,0.000308,2]
[341496552,1730923843271,-2017.6231,0.000308,2]
[341496553,1730923843280,-2500.0,0.000308,2]
[341496554,1730923843289,-1685.3526,0.000308,2]
[341496555,1730923843299,-11216.5884,0.000308,2]
[341496556,1730923843308,-951.02,0.000308,2]
[341496557,1730923843317,-500.0,0.00030873,5]
[341496558,1730923843327,-605.17008193,0.00030888,2]
[341496559,1730923843336,-7500.0,0.00030899,2]
[341496560,1730923843346,-315875.7293,0.000309,2]
[341496561,1730923843356,-6390.63505437,0.000309,2]
[341496562,1730923843367,-416.28,0.00030955,30]
[341496563,1730923843376,-1229.33,0.00030984,2]
[341496564,1730923843385,-500.0,0.00031,2]
[341496565,1730923843394,-997.83827242,0.00031,30]
[341496566,1730923843404,-500.0,0.00031,30]
[341496567,1730923843413,-500.0,0.00031,30]
[341496568,1730923843422,-830.53894671,0.00031,30]
[341496569,1730923843431,-500.0,0.00031,30]
[341496570,1730923843440,-504.33733414,0.00031,30]
[341496571,1730923843450,-500.0,0.00031,30]
[341496572,1730923843459,-500.0,0.00031,30]
[341496573,1730923843469,-500.0,0.00031,30]
[341496574,1730923843478,-532.45964944,0.00031,30]
[341496575,1730923843487,-500.0,0.00031,30]
[341496576,1730923843497,-500.0,0.00031,30]
[341496577,1730923843507,-500.0,0.00031,30]
[341496578,1730923843516,-500.0,0.00031,30]
[341496579,1730923843526,-500.0,0.00031,30]
[341496580,1730923843535,-500.0,0.00031,30]
[341496581,1730923843545,-500.0,0.00031,30]
[341496582,1730923843554,-160.487,0.0003107,2]
[341496583,1730923843563,-605.17008193,0.0003109,2]
[341496584,1730923843572,-15608.50899577,0.00031192,2]
[341496585,1730923843582,-196.47323622,0.00031192,2]
[341496586,1730923843590,-28031.0,0.00031265,2]
[341496587,1730923843600,-163.21,0.00031288,2]
[341496588,1730923843609,-605.17008193,0.00031293,2]
[341496589,1730923843623,-500.0,0.000314,120]
[341496590,1730923843633,-605.17008193,0.00031495,2]
[341496591,1730923843642,-150.110705,0.00031498,5]
[341496592,1730923843651,-150.110705,0.00031498,4]
[341496593,1730923843660,-150.110705,0.00031498,3]
[341496594,1730923843671,-178.5539,0.0003158,2]
[341496595,1730923843680,-5883.7558,0.0003158,2]
[341496596,1730923843689,-299.3538,0.0003158,2]
[341496597,1730923843699,-33393.02952164,0.0003168,2]
[341496598,1730923843708,-819.56468,0.0003168,2]
[341496599,1730923843717,-605.17008193,0.00031698,2]
[341496600,1730923843727,-1000.0,0.000317,2]
[341496601,1730923843739,-322.46636257,0.00031704,2]
[341496602,1730923843749,-1000.0,0.0003178,30]
[341496603,1730923843760,-7500.0,0.00031799,2]
[341496604,1730923843770,-37883.6625,0.000318,2]
[341496605,1730923843780,-5923.502,0.000318,2]
[341496606,1730923843790,-16883.6848,0.000318,2]
[341496607,1730923843799,-1440.8602,0.000318,2]
[341496608,1730923843809,-1000.0,0.000318,2]
[341496609,1730923843818,-166.76,0.00031837,2]
[341496610,1730923843829,-105527.1924,0.00031878,2]
[341496611,1730923843839,-7500.0,0.00031899,2]
[341496612,1730923843848,-325.8222128,0.000319,3]
[341496615,1730923843858,-220.0,0.000319,2]
[341496616,1730923843870,-245000.0,0.000319,2]
[341496617,1730923843881,-11803.6919,0.000319,2]
[341496618,1730923843890,-2765.3823,0.000319,2]
[341496619,1730923843900,-794.4739,0.000319,2]
[341496620,1730923843910,-500.0,0.000319,2]
[341496621,1730923843919,-200.0,0.000319,2]
[341496622,1730923843930,-15608.50899577,0.000319,2]
[341496623,1730923843940,-3540.19616202,0.000319,2]
[341496624,1730923843949,-605.17008193,0.000319,2]
[341496625,1730923843959,-371.18457394,0.00031973,5]
[341496626,1730923843968,-28277.6636364,0.00031978,2]
[341496627,1730923843977,-26035.3819384,0.00031978,2]
[341496628,1730923843987,-7500.0,0.00031996,2]
[341496629,1730923843997,-7500.0,0.00031996,2]
[341496630,1730923844007,-852.4,0.00031996,2]
[341496631,1730923844016,-255.86203825,0.00031997,2]
[341496632,1730923844025,-825.24409391,0.00031997,2]
[341496633,1730923844034,-417172.43850259,0.00031997,2]
[341496634,1730923844044,-268.141721,0.00031997,7]
[341496635,1730923844054,-268.141721,0.00031997,7]
[341496636,1730923844063,-151.0,0.00031997,7]
[341496637,1730923844073,-151.0,0.00031997,7]
[341496638,1730923844083,-151.0,0.00031997,7]
[341496639,1730923844092,-151.0,0.00031997,7]
[341496640,1730923844102,-151.0,0.00031997,7]
[341496641,1730923844111,-7500.0,0.00031999,2]
[341496642,1730923844124,-7500.0,0.00031999,2]
[341496643,1730923844134,-2467.49155429,0.00031999,2]
[341496644,1730923844144,-310348.12128349,0.00031999,3]
[341496645,1730923844952,-600.60254389,0.00031999,3]
[341496646,1730923844964,-3258.52100198,0.00031999,3]
[341496647,1730923844990,-22583.99999998,0.00031999,3]
[341496651,1730923846568,-185.09936563,0.00030483,15]
[341496652,1730923846579,-150.110705,0.00031498,2]
[341496653,1730923846589,-196.47323622,0.000319,2]
[341496654,1730923846599,-151.0,0.00031997,7]
[341496655,1730923846610,-73.43669315,0.00031999,3]
[341496656,1730923846624,-2269.3873,0.00031999,3]
[341496657,1730923846639,-15132.07380001,0.00031999,3]
[341496658,1730923846657,-1319578.50534946,0.00031999,3]
[341496659,1730923846667,-33129.50041214,0.00031999,3]
[341496660,1730923846676,-147265.70166629,0.00032,5]
[341496661,1730923846688,-2012.21143068,0.00032,5]
[341496662,1730923846700,-33772.89631362,0.00032,5]
[341496664,1730923846711,-914.98390039,0.00032,5]
[341496665,1730923846739,-337.48932718,0.00032,5]
[341496666,1730923846751,-1027360.82632108,0.00032,5]
[341496667,1730923846765,-1187.79752032,0.00032,5]
[341496668,1730923846790,-235761.88423906,0.00032,5]
[341496669,1730923846802,-27897.52689064,0.00032,5]
[341496670,1730923846828,-4536.42416001,0.00032,5]
[341496671,1730923846840,-538.19129664,0.00032,5]
[341496672,1730923860505,2740.59411585,0.00028681,2]
[341496673,1730923860525,6884.66268,0.00028681,2]
[341496674,1730923860544,352.93502965,0.00028681,2]
[341496675,1730923881903,158.7740072,0.00021,2]
[341496676,1730924063155,164.08,0.00015342,2]
[341496683,1730924568684,158.55,0.00015342,2]
[341496685,1730924740118,-500.0,0.00024932,2]
[341496686,1730924740140,-509.86289854,0.00027196,2]
[341496687,1730924798788,150.0,0.00021,2]
[341496688,1730924845241,-180.24349455,0.00022,2]
[341496689,1730924854108,-690.85209119,0.00022,2]
[341496691,1730924914797,-202.13202661,0.00021973,2]
[341496692,1730924914821,-39797.86797339,0.00022,2]
[341496694,1730924925867,-40000.0,0.00022,2]
[341496696,1730924944241,-250.0,0.00022,2]
[341496697,1730924945141,-40384.11146,0.00022,2]
[341496698,1730924951753,-14955.61438,0.00022,2]
[341496699,1730924951795,-10420.0332592,0.00022,2]
[341496700,1730924951816,-13446.37307873,0.00022,2]
[341496701,1730924951835,-750.9344042,0.00022,7]
[341496702,1730924951855,-25742.51215787,0.00023922,2]
[341496703,1730924953800,150.0,0.00018123,2]
[341496704,1730924963450,-127465.06070804,0.00023922,2]
[341496708,1730924966143,-225.25947085,0.00025,120]
[341496709,1730924966163,-637.98973465,0.00025,120]
[341496710,1730924966182,-3115.34279189,0.00025,60]
[341496711,1730924966201,-4480.69468731,0.00025,2]
[341496712,1730924967192,-4288.01601847,0.00025,2]
[341496713,1730924967212,-194.7,0.000253,2]
[341496714,1730924967234,-724.54460096,0.00026,30]
[341496715,1730924967258,-674.21769566,0.00027,120]
[341496716,1730924967279,-508.1806079,0.00027,120]
[341496717,1730924967298,-299.296595,0.00027,120]